Cogmind - Beta 13 X1 @@@ ROGUE MODE // 2023.07.14 @ 21:49:05 Player: kasaphescent Result: Destroyed by S-43 Plague with Heavy Machine Gun Performance ------------- Evolutions (7) 3500 Regions Visited (18) 3600 Robots Destroyed (188) 940 Value Destroyed (8053) 8053 Prototype IDs (32) 640 Alien Tech Used (0) 0 Bonus (1164) 1164 TOTAL SCORE: 17897 Bonus ------- High Alert Combat Kills 57 Follower Combat Kills 224 Met Data Miner 300 Met Warlord at Base 500 MAIN.C Attacked Warlord 500 Warlord Defense Kills 146 Friendly Fire -563 Cogmind --------- Core Integrity 0/1300 Matter 247/300 Energy 99/100 System Corruption 14% Temperature Cool (0) Movement Core (50) Location -3/Research Parts ------- > --- POWER (2) -------- (None) > --- PROPULSION (8) --- (None) > --- UTILITY (8) ------ (None) > --- WEAPON (3) ------- (None) > --- INVENTORY (5) ---- Plasma Storm Peak State ------------ > --- POWER ------------ Vortex Chain Reactor > --- PROPULSION ------- Improved Heavy Treads Improved Heavy Treads Improved Heavy Treads Spiked Heavy Treads > --- UTILITY ---------- Advanced Cooling System Advanced Cooling System High-capacity Storage Unit Enhanced Optical Array Advanced Targeting Computer Layered Heavy Armor Plating Improved Energy Mantle > --- WEAPON ----------- Phase Gun Helical Railgun Hardcell Cannon > --- INVENTORY -------- Reinforced Fission Core Improved Heavy Treads Biometal Medium Treads Advanced Coolant Injector Huge Storage Unit Matter Compressor Matter Compressor Improved Medium Armor Plating EM Disruption Field Plasma Storm Nova Cannon Enhanced Gauss Cannon Hardcell Cannon Heavy Shock Bomb Launcher Remote Datajack [Rating: 153] Favorites ----------- Power Subdweller Power Source Engine Subdweller Power Source Power Core Light Fission Core Reactor Light Quantum Reactor Propulsion Armored Leg Treads Improved Heavy Treads Leg Armored Leg Wheel Armored Huge Wheel Flight Unit Cesium-ion Thruster Utility High-capacity Storage Unit Device Advanced Cooling System Storage High-capacity Storage Unit Processor Advanced Targeting Computer Protection Makeshift Armor Plating Weapon Helical Railgun Energy Gun Heavy Particle Gun Energy Cannon Heavy Ion Cannon Ballistic Gun Helical Railgun Ballistic Cannon Hardcell Cannon Launcher Grenade Launcher Impact Weapon Heavy Hammer Build | -11 -10 -10 -9 -9 -8 -7 -7 -7 -7 -6 -6 -5 -4 -4 -4 -4 -3 -3 ------- Run | Jun Mat Sub Mat Min Mat Fac Low Low Dat Pro Fac Fac Fac Upp Upp War Pro Res Slots Evolved 14 | . . . 2 . 2 2 . . . . 2 2 2 . . . . 2 Power 1 | . . . . . . . . . . . . 1 . . . . . . Propulsion 6 | . . . 2 . . 2 . . . . . . . . . . . 2 Utility 6 | . . . . . 2 . . . . . 2 . 2 . . . . . Weapon 1 | . . . . . . . . . . . . 1 . . . . . . Parts Attached 225 | 6 10 38 9 3 6 16 3 3 . 11 32 21 37 4 7 5 2 12 Power 26 | 1 . 8 . 1 . 2 2 . . 1 1 4 3 1 . 1 . 1 Engine 12 | 1 . 8 . . . . 2 . . . . 1 . . . . . . Core 9 | . . . . 1 . 2 . . . 1 1 3 . . . . . 1 Reactor 5 | . . . . . . . . . . . . . 3 1 . 1 . . Propulsion 58 | 2 4 5 3 2 . 7 1 1 . 1 14 3 11 . 1 . . 3 Treads 23 | 1 4 . 1 1 . 5 . . . 1 1 . 5 . 1 . . 3 Leg 25 | . . 5 . . . . 1 . . . 10 3 6 . . . . . Wheel 9 | 1 . . 2 1 . 2 . 1 . . 2 . . . . . . . Hover . | . . . . . . . . . . . . . . . . . . . Flight 1 | . . . . . . . . . . . 1 . . . . . . . Utility 62 | 1 1 10 1 . 3 3 . 2 . 1 9 6 11 3 3 4 . 4 Device 30 | . . 2 . . 1 . . 1 . . 5 5 5 3 2 4 . 2 Storage 4 | 1 . . 1 . . 1 . . . . 1 . . . . . . . Processor 7 | . . . . . . 1 . . . . 1 1 3 . . . . 1 Hackware . | . . . . . . . . . . . . . . . . . . . Protection 21 | . 1 8 . . 2 1 . 1 . 1 2 . 3 . 1 . . 1 Artifact . | . . . . . . . . . . . . . . . . . . . Weapon 79 | 2 5 15 5 . 3 4 . . . 8 8 8 12 . 3 . 2 4 Energy Gun 16 | . . 3 . . 1 1 . . . 1 1 4 4 . 1 . . . Energy Cannon 11 | . . . . . 2 2 . . . 2 3 1 . . . . . 1 Ballistic Gun 26 | 2 3 11 2 . . . . . . . 1 3 4 . . . . . Ballistic Cannon 12 | . 1 1 1 . . . . . . . 3 . 3 . 1 . 1 1 Launcher 13 | . 1 . 1 . . 1 . . . 5 . . 1 . 1 . 1 2 Special Weapon . | . . . . . . . . . . . . . . . . . . . Impact Weapon 1 | . . . 1 . . . . . . . . . . . . . . . Slashing Weapon . | . . . . . . . . . . . . . . . . . . . Piercing Weapon . | . . . . . . . . . . . . . . . . . . . Special Melee Weapon . | . . . . . . . . . . . . . . . . . . . Unidentified Prototypes 11 | . . . . . 1 . . . . . 1 1 3 . . 4 . 1 Corrupted Parts 1 | . . . . . . . . . . . 1 . . . . . . . System Corruption 9 | . . . . . . . . . . . 9 . . . . . . . Parts Lost 71 | . 1 8 . . 1 2 . 4 . 9 4 12 11 . 1 . . 18 Power 9 | . . 2 . . . 1 . . . 1 . 3 1 . . . . 1 Propulsion 23 | . 1 2 . . . 1 . 2 . 3 2 2 4 . . . . 6 Utility 22 | . . . . . . . . 2 . 2 2 5 4 . 1 . . 6 Weapon 17 | . . 4 . . 1 . . . . 3 . 2 2 . . . . 5 Highest Loss Streak 18 | . 1 4 . . 1 1 . 4 . 4 2 11 3 . 1 . . 18 To Critical Strikes 1 | . . . . . . . . . . . . . . . . . . 1 Average Slot Usage (%) 84 | . 92 90 86 76 81 86 92 84 84 78 66 97 87 77 78 75 73 65 Engine 4 | . 14 10 8 . . . 3 7 7 6 . . 4 . . . . . Core 2 | . . . . 2 9 7 3 . . . 3 9 . . . . . . Reactor 1 | . . . . . . . . . . . . . 3 9 10 7 5 3 Treads 9 | . 23 1 1 7 . 11 23 17 15 13 . . 5 15 15 15 15 17 Leg 10 | . . 18 10 11 9 3 3 1 . . 16 34 24 . . . . . Wheel 4 | . 4 . 19 10 9 16 11 12 15 13 7 . . . . . . . Device 8 | . . 2 . . 7 7 7 7 7 6 14 21 13 10 13 14 15 12 Storage 5 | . 14 . 5 11 9 7 7 7 7 6 5 5 5 5 5 5 5 3 Processor 4 | . . . . . . 6 7 7 7 6 . 2 10 15 11 10 10 8 Protection 11 | . 7 29 19 11 19 7 7 7 7 6 2 3 4 5 5 5 5 3 Energy Gun 5 | . . 8 3 . 4 6 7 7 7 6 . 11 5 5 5 5 5 3 Energy Cannon 1 | . . . . . 6 7 7 7 7 6 3 . . . . . . . Ballistic Gun 7 | . 19 16 6 22 7 . . . . . . 3 4 5 5 5 5 3 Ballistic Cannon 2 | . 7 . 6 . . . . . . . 5 . 3 5 4 5 5 3 Naked Turns 89 | . . . . . . . . . . 15 42 . . . . . . 32 Heaviest Build 136 | 12 15 26 56 56 67 65 66 66 66 66 72 78 113 117 129 136 136 136 Greatest Support 300 | 10 40 55 55 55 28 72 44 56 56 56 101 96 225 225 225 225 225 300 Greatest Overweight (x) 2 | 1 1 2 1 1 2 1 2 2 1 2 2 1 2 . . . . . Average Overweight (x) . | . . . . . 2 . 1 1 1 . . . . . . . . . Largest Inventory Capacity 20 | 8 8 8 20 20 20 20 20 20 20 20 20 20 20 20 20 20 20 20 Average Capacity 15 | 6 8 5 13 20 20 20 20 20 20 19 18 20 20 20 20 20 20 19 Most Carried 20 | 7 8 8 15 20 20 20 20 20 20 20 20 20 20 20 20 20 20 20 Average Carried 14 | 4 7 5 7 15 19 19 19 18 20 19 11 19 19 19 19 19 20 17 Final Capacity 20 | 8 8 5 20 20 20 20 20 20 20 5 20 20 20 20 20 20 20 5 Final Carried 20 | 7 8 5 14 20 20 20 20 20 20 5 20 19 20 20 20 20 20 5 Class Distribution -------------------- 44% | Mutant 28% | Derelict-Mutant 9% | Derelict-Tank 5% | Tank 5% | Gunner 3% | Scavenger-Gunner Dominant Class ---------------- Mutant | -10/Materials Derelict-Mutant | -10/Subcaves Derelict-Mutant | -9/Materials Mutant | -9/Mines Mutant | -8/Materials Mutant | -7/Factory Mutant | -7/Lower Caves Mutant | -7/Lower Caves Mutant | -7/Data Miner Mutant | -6/Proximity Caves Mutant | -6/Factory Tank | -5/Factory Scavenger-Gunner | -4/Factory Gunner | -4/Upper Caves Derelict-Tank | -4/Upper Caves Derelict-Tank | -4/Warlord Derelict-Mutant | -3/Proximity Caves Derelict-Mutant | -3/Research Resources | -11 -10 -10 -9 -9 -8 -7 -7 -7 -7 -6 -6 -5 -4 -4 -4 -4 -3 -3 ----------- Run | Jun Mat Sub Mat Min Mat Fac Low Low Dat Pro Fac Fac Fac Upp Upp War Pro Res Matter Collected 6057 | 272 273 803 188 129 244 165 30 30 . 167 617 801 744 521 462 134 60 417 Remotely . | . . . . . . . . . . . . . . . . . . . Salvage Created 8071 | 83 433 599 179 100 372 525 540 540 . 405 519 1308 674 379 390 71 105 849 Parts 403 | 2 31 48 7 1 22 27 21 26 . 20 35 48 20 14 9 1 3 68 Haulers Intercepted 4 | . 2 . . . . 1 . . . . . . 1 . . . . . Recyclers Shooed 6 | . 1 . . 1 . . . . . . 1 1 . . . . . 2 Parts Field Recycled . | . . . . . . . . . . . . . . . . . . . Retrieved Matter . | . . . . . . . . . . . . . . . . . . . Parts Self-Destructed 106 | . . 15 . . . . 20 34 . 20 . . . 11 4 . 2 . Prevented 9 | . . . . . . . 2 . . . . . . . 7 . . . Kills | -11 -10 -10 -9 -9 -8 -7 -7 -7 -7 -6 -6 -5 -4 -4 -4 -4 -3 -3 ------- Run | Jun Mat Sub Mat Min Mat Fac Low Low Dat Pro Fac Fac Fac Upp Upp War Pro Res Combat Hostiles Destroyed 161 | . 12 18 4 . 9 14 11 10 . 12 11 18 12 6 5 1 3 15 Melee 1 | . . . 1 . . . . . . . . . . . . . . . Guns 84 | . 8 17 2 . 8 3 4 6 . 2 . 18 4 4 1 . 1 6 Cannons 53 | . 4 1 1 . 1 7 7 4 . 1 9 . 7 2 2 1 . 6 AOE 17 | . . . . . . 2 . . . 9 . . 1 . . . 2 3 Classes Destroyed 22 | 1 3 1 2 . . 2 2 . . 2 2 1 . 1 1 . . 4 Worker 8 | . . . . . . . . . . . 1 2 . . . . . 5 Builder 7 | . . . 1 . . . . . . . . . . . . . . 6 Hauler 4 | . 2 . . . . 1 . . . . . . 1 . . . . . Recycler 3 | 1 1 . . 1 . . . . . . . . . . . . . . Mechanic 1 | . . . . . . . . . . . . . . . . . . 1 Drone 1 | . . . . . . . . . . 1 . . . . . . . . Watcher 3 | . . . . . . . . . . . 1 1 . . . . . 1 Swarmer 37 | . 6 3 . . 3 9 2 1 . 1 4 . . . . . 3 5 Saboteur 1 | . . . . . . . . . . . . . . . . . . 1 Grunt 51 | . 6 2 1 . 6 . 5 5 . 6 . 10 5 3 1 1 . . Brawler 4 | . . . . . . . . 1 . 2 . . . . 1 . . . Duelist 5 | . . . . . . . 1 2 . . . 1 . . 1 . . . Protector 1 | . . . . . . . . . . . . . . . . . . 1 Sentry 14 | . . . 3 . . 3 . 1 . 1 1 1 1 1 1 . . 1 Specialist 2 | . . . . . . . . . . . . 2 . . . . . . Hunter 8 | . . . . . . 1 . . . 1 4 . 2 . . . . . Programmer 19 | . . . . . . 1 . . . . 2 4 4 2 . . . 6 Behemoth 1 | . . . . . . . . . . . . . . . 1 . . . Enhanced Grunt 1 | . . . . . . . . . . 1 . . . . . . . . Executioner 1 | . . . . . . . . . . . . . . . . . . 1 Subdweller 13 | . . 13 . . . . . . . . . . . . . . . . Samaritan 1 | . . . . . . . . . . . . . . 1 . . . . Tinkerer 1 | . . . . . . . . . . 1 . . . . . . . . Savage 1 | . . . . . . . 1 . . . . . . . . . . . Butcher 2 | . . . . . . . 2 . . . . . . . . . . . Best Kill Streak 15 | 1 4 4 2 1 6 5 3 9 . 8 4 5 3 2 3 1 3 15 Combat Bots Only 10 | . 3 4 1 . 6 5 3 9 . 8 4 4 3 2 3 1 3 10 Max Kills in Single Turn 4 | 1 1 2 1 1 1 2 1 1 . 4 1 1 1 1 2 1 2 4 Gunslinging 1 | . . 1 . . . . . . . . . . . . . . . . Exploded 4 | . . . . . . 2 . . . 4 . . 1 . . . 2 3 Melee 1 | . . . 1 . . . . . . . . . . . . . . . Uniques/NPCs Destroyed . | . . . . . . . . . . . . . . . . . . . Combat | -11 -10 -10 -9 -9 -8 -7 -7 -7 -7 -6 -6 -5 -4 -4 -4 -4 -3 -3 -------- Run | Jun Mat Sub Mat Min Mat Fac Low Low Dat Pro Fac Fac Fac Upp Upp War Pro Res Damage Taken 21089 | . 386 1903 352 40 655 967 351 790 . 1254 1136 2837 1883 1098 808 1002 70 5557 Core 3012 | . 47 195 77 . 70 64 51 97 . 241 241 285 91 68 101 77 . 1307 Absorbed by Shields 1293 | . . . . . . . . . . . . . . . 251 406 68 568 Reduced by Siege Mode 278 | . . . . . . . . . . . . . . . 36 . . 242 Redirected to Shielding 314 | . . 42 . . . . . . . . 160 . 112 . . . . . Ignored by Resistances 751 | . . 22 8 . 7 . . . . . 173 334 119 . . . . 88 Regen/Repaired (Parts) 313 | . . . . . . . . . . . . . . . . 313 . . Core Remaining (%) 64 | 100 . 3 . 80 87 . . . . 35 71 71 . . . . 70 . Volleys Fired 633 | 6 68 112 14 2 34 32 28 33 . 15 46 76 49 22 19 15 6 56 Largest 3 | 2 2 2 2 2 2 2 2 2 . 2 2 3 3 3 3 1 2 3 Hottest 266 | 40 55 90 99 46 130 130 120 120 . 120 96 188 197 197 191 88 126 266 Shots Fired 1230 | 12 117 177 24 4 68 63 54 66 . 28 64 205 111 58 49 15 9 106 Gun 829 | 12 69 167 13 4 63 31 26 33 . 9 . 205 72 37 28 4 6 50 Cannon 374 | . 41 10 11 . 5 31 28 33 . 9 64 . 39 21 17 11 2 52 Launcher 27 | . 7 . . . . 1 . . . 10 . . . . 4 . 1 4 Special . | . . . . . . . . . . . . . . . . . . . Kinetic 647 | 12 110 123 17 4 61 . . . . . 38 46 79 44 32 11 5 65 Thermal 530 | . . 54 7 . 7 62 54 66 . 18 . 159 32 14 13 4 3 37 Explosive 21 | . 7 . . . . 1 . . . 10 . . . . . . . 3 Electromagnetic 32 | . . . . . . . . . . . 26 . . . 4 . 1 1 Robot Hit Streak 36 | 5 13 20 8 1 10 24 20 17 . 10 9 13 14 21 36 9 4 25 Robot Miss Streak 5 | 1 3 2 2 1 2 2 1 3 . 2 5 4 2 2 2 1 2 2 Penetration Max 1 | . . . . . . . . . . . . 1 . . . . . 1 Secondary Targets 11 | . 1 4 . . . . . . . . . 4 . . . . . 2 Max Gunslinging Chain 1 | . 1 1 . . . . . . . . . 1 . . . . . 1 Shots Hit Robots 852 | 10 68 123 26 2 48 51 41 49 . 20 31 127 80 45 41 10 6 74 Core Hits 369 | 2 27 33 5 2 20 20 20 20 . 38 15 46 27 11 13 4 4 62 Critical Kills 4 | . . . . . . 1 . . . . . 2 . 1 . . . . Critical Parts Destroyed 7 | . . 1 1 . . . . . . . . 3 2 . . . . . Critical Strikes 35 | . 3 2 3 . . 3 1 . . . 4 7 6 3 1 . . 2 Burn 6 | . . . . . . 2 1 . . . . 2 . . . . . 1 Meltdown 1 | . . . . . . 1 . . . . . . . . . . . . Destroy 10 | . . 2 . . . . . . . . . 5 2 1 . . . . Blast 15 | . 3 . 2 . . . . . . . 2 . 4 2 1 . . 1 Corrupt 2 | . . . . . . . . . . . 2 . . . . . . . Smash 1 | . . . 1 . . . . . . . . . . . . . . . Melee Attacks 10 | . . . 10 . . . . . . . . . . . . . . . Impact 10 | . . . 10 . . . . . . . . . . . . . . . Slashing . | . . . . . . . . . . . . . . . . . . . Piercing . | . . . . . . . . . . . . . . . . . . . Sneak Attacks 1 | . . . 1 . . . . . . . . . . . . . . . Combat Hostiles . | . . . . . . . . . . . . . . . . . . . Follow-up Attacks . | . . . . . . . . . . . . . . . . . . . Damage Inflicted 24702 | 78 785 1235 668 30 779 1278 925 1104 . 1789 951 3433 2978 1538 1559 418 441 4713 Guns 11991 | 78 433 1160 235 30 670 486 388 516 . 152 . 3415 1553 878 694 . 102 1201 Cannons 7605 | . 303 75 142 . 109 648 537 588 . 187 951 . 1102 660 480 383 42 1398 Explosions 4579 | . 49 . . . . 144 . . . 1450 . . 310 . 385 . 212 2029 Melee 291 | . . . 291 . . . . . . . . . . . . . . . Ramming 236 | . . . . . . . . . . . . 18 13 . . 35 85 85 Kinetic 10054 | 78 736 856 231 30 653 . . . . . 326 1057 1927 1238 885 383 92 1562 Thermal 9575 | . . 379 146 . 126 1134 925 1104 . 339 . 2358 1038 300 289 . 181 1256 Explosive 3132 | . 49 . . . . 144 . . . 1450 . . . . . . . 1489 Electromagnetic 1414 | . . . . . . . . . . . 625 . . . 385 . 83 321 Impact 291 | . . . 291 . . . . . . . . . . . . . . . Slashing . | . . . . . . . . . . . . . . . . . . . Piercing . | . . . . . . . . . . . . . . . . . . . Highest Corruption 29 | . 2 2 . . . . . . . . 11 29 13 13 13 13 . 14 Average Corruption 8 | . 2 1 . . . . . . . . 10 9 9 13 13 13 . 6 Corruption Purged 2 | . . 2 . . . . . . . . . . . . . . . . Corruption Blocked . | . . . . . . . . . . . . . . . . . . . Effects 168 | . . 16 . . . . . . . . 17 34 36 24 32 2 . 7 Message Errors 41 | . . 4 . . . . . . . . 6 11 8 5 5 1 . 1 Matter Fused 40 | . . 6 . . . . . . . . 5 5 9 4 11 . . . Heat Flow Errors 15 | . . 1 . . . . . . . . 1 4 2 4 3 . . . Energy Discharges 20 | . . 1 . . . . . . . . 1 3 6 4 4 1 . . Parts Rejected 2 | . . 1 . . . . . . . . . 1 . . . . . . Parts Fused 3 | . . . . . . . . . . . . 1 2 . . . . . Data Loss (minor) 17 | . . 3 . . . . . . . . 2 5 2 1 3 . . 1 Data Loss (major) 4 | . . . . . . . . . . . . . 2 . 2 . . . Misfires 9 | . . . . . . . . . . . 2 1 . 4 2 . . . Alerts 4 | . . . . . . . . . . . . 1 . 2 1 . . . Misdirections 8 | . . . . . . . . . . . . 1 3 . . . . 4 Weapon Failures 5 | . . . . . . . . . . . . 1 2 . 1 . . 1 Overload Shots 1 | . . . . . . . . . . . . 1 . . . . . . Overflow Damage 495 | . . . 78 . . . . . . 56 40 . 136 24 42 . 25 94 Projectiles 251 | . . . . . . . . . . . 40 . 88 24 27 . . 72 Explosions 140 | . . . . . . . . . . 56 . . 48 . 15 . . 21 Melee 104 | . . . 78 . . . . . . . . . . . . . 25 1 Knockbacks 37 | . 2 1 1 . . . . . . . 2 . 5 5 1 7 . 13 Impact 1 | . . . 1 . . . . . . . . . . . . . . . Kinetic 31 | . 2 1 . . . . . . . . 1 . 4 5 1 5 . 12 Secondary 5 | . . . . . . . . . . . 1 . 1 . . 2 . 1 Self-Inflicted Damage 186 | . . . . . . . . . . 102 . . . . . . . 84 Shots 4 | . . . . . . . . . . 3 . . . . . . . 1 Rammed 10 | . . . . . . . . . . . . . . . . 2 2 6 Targets Rammed 14 | . . . . . . . . . . . . 1 2 . . 2 2 7 Kicked 3 | . . . . . . . . . . . . 1 2 . . . . . Crushed 1 | . . . . . . . . . . . . . . . . . . 1 Highest Temperature 518 | . 40 132 518 . 267 9 . 87 . 27 384 245 334 271 218 266 . 32 Average Temperature 99 | . 13 16 262 . 98 6 . 35 . 14 102 97 74 109 100 126 . 17 Received Heat Transfer 3442 | . 168 153 156 . 369 102 144 369 . 501 30 567 202 252 69 160 . 200 Effects 15 | . . . 12 . . . . . . . 1 2 . . . . . . Shutdowns 3 | . . . 2 . . . . . . . 1 . . . . . . . Energy Bleed 3 | . . . 1 . . . . . . . . 2 . . . . . . Interference 1 | . . . 1 . . . . . . . . . . . . . . . Matter Decay 2 | . . . 2 . . . . . . . . . . . . . . . Short Circuit 2 | . . . 2 . . . . . . . . . . . . . . . Damage (minor) 3 | . . . 3 . . . . . . . . . . . . . . . Damage (core) 1 | . . . 1 . . . . . . . . . . . . . . . Siege Activations 2 | . . . . . . . . . . . . . . . 1 . . 1 Total Turns 67 | . . . . . . . . . . . . . . . 20 . . 47 Longest Duration 47 | . . . . . . . . . . . . . . . 20 . . 47 Robots Corrupted 4 | . . . . . . . . . . . 2 . . . 2 . . . Combat Hostiles 4 | . . . . . . . . . . . 2 . . . 2 . . . Parts Fried 11 | . . . 2 . . . . . . . 7 . . . 2 . . . Impact Corruptions 7 | . . . 3 . . . . . . . 1 . . . . . 2 1 Robots Melted 2 | . . . . . . 2 . . . . . . . . . . . . Combat Hostiles 2 | . . . . . . 2 . . . . . . . . . . . . Parts Melted 36 | . . . . . . 7 3 4 . 1 . 17 1 . . . . 3 Heat Transferred 14037 | . . 475 175 . 185 2035 1554 1813 . 367 . 3947 1162 370 407 . 124 1423 Parts Sabotaged . | . . . . . . . . . . . . . . . . . . . Parts Stolen . | . . . . . . . . . . . . . . . . . . . Parts Stripped . | . . . . . . . . . . . . . . . . . . . Power Chain Reactions 2 | . . . . . . . . . . . . . . . . . 1 1 Missiles Intercepted . | . . . . . . . . . . . . . . . . . . . Alert | -11 -10 -10 -9 -9 -8 -7 -7 -7 -7 -6 -6 -5 -4 -4 -4 -4 -3 -3 ------- Run | Jun Mat Sub Mat Min Mat Fac Low Low Dat Pro Fac Fac Fac Upp Upp War Pro Res Peak Influence 518 | 5 219 . 264 41 260 183 . . . . 518 345 252 . . . . 434 Initial 487 | . 3 . 98 36 15 27 . . . . 487 194 142 . . . . 47 Average 165 | 1 122 . 167 36 175 64 . . . . 406 181 159 . . . . 117 Maximum Alert Level 2 | . 1 . 1 . 1 . . . . . 2 1 1 . . . . 2 Low Security (%) 68 | 100 92 . 54 100 43 100 . . . . 10 64 64 . . . . 81 Level 1 24 | . 7 . 45 . 56 . . . . . 38 35 35 . . . . 13 Level 2 7 | . . . . . . . . . . . 51 . . . . . . 5 Level 3 . | . . . . . . . . . . . . . . . . . . . Level 4 . | . . . . . . . . . . . . . . . . . . . Level 5 . | . . . . . . . . . . . . . . . . . . . High Security . | . . . . . . . . . . . . . . . . . . . Max Security . | . . . . . . . . . . . . . . . . . . . Squads Dispatched 29 | . 1 . 1 . 2 1 . 1 . 1 4 11 3 . 1 . . 3 Investigation 5 | . 1 . . . . . . . . . 2 2 . . . . . . Extermination 7 | . . . . . . 1 . . . . 1 1 3 . . . . 1 Reinforcement 11 | . . . 1 . 2 . . . . . 1 5 . . . . . 2 Assault 3 | . . . . . . . . 1 . 1 . . . . 1 . . . Garrison 3 | . . . . . . . . . . . . 3 . . . . . . Intercept . | . . . . . . . . . . . . . . . . . . . Searches Triggered 1 | . . . . . . . . . . . 1 . . . . . . . Data Miner Redirects 2 | . . . . . . . . . . . . 1 . . . . . 1 Construction Impeded 6 | . . . 1 . 1 . . . . . . 2 . . . . . 2 Haulers Reinforced . | . . . . . . . . . . . . . . . . . . . Active Scanning Responses . | . . . . . . . . . . . . . . . . . . . Cargo Convoy Interrupts 1 | . . . . . . . . . . . . . . . . . . 1 Stealth | -11 -10 -10 -9 -9 -8 -7 -7 -7 -7 -6 -6 -5 -4 -4 -4 -4 -3 -3 --------- Run | Jun Mat Sub Mat Min Mat Fac Low Low Dat Pro Fac Fac Fac Upp Upp War Pro Res Distress Signals 7 | . 1 . 1 . . 1 . . . . . 1 . . . . . 3 Communications Jammed . | . . . . . . . . . . . . . . . . . . . Distress Signals . | . . . . . . . . . . . . . . . . . . . Times Spotted 340 | . 27 21 6 . 16 20 18 16 . 25 16 38 19 6 7 46 5 54 Peak Tracking Total 22 | . 5 5 3 . 8 6 6 11 . 10 4 10 4 3 8 13 3 22 Tactical Retreats 19 | . 2 3 1 . . . 1 3 . . 1 1 2 . 3 1 . 1 Traps | -11 -10 -10 -9 -9 -8 -7 -7 -7 -7 -6 -6 -5 -4 -4 -4 -4 -3 -3 ------- Run | Jun Mat Sub Mat Min Mat Fac Low Low Dat Pro Fac Fac Fac Upp Upp War Pro Res Traps Triggered 13 | . 2 1 . 1 . . . . . . 3 5 1 . . . . . Indirectly . | . . . . . . . . . . . . . . . . . . . Trap Hack Attempts . | . . . . . . . . . . . . . . . . . . . Triggered . | . . . . . . . . . . . . . . . . . . . Disarmed . | . . . . . . . . . . . . . . . . . . . Reprogrammed . | . . . . . . . . . . . . . . . . . . . Reused 4 | . . 4 . . . . . . . . . . . . . . . . Traps Extracted . | . . . . . . . . . . . . . . . . . . . Installed 4 | . . 4 . . . . . . . . . . . . . . . . Triggered 14 | . . 1 . . . . 1 2 . . . . . . . 10 . . Most Traps Carried 1 | . . 1 . . . . . . . . . . . . . . . . Machines | -11 -10 -10 -9 -9 -8 -7 -7 -7 -7 -6 -6 -5 -4 -4 -4 -4 -3 -3 ---------- Run | Jun Mat Sub Mat Min Mat Fac Low Low Dat Pro Fac Fac Fac Upp Upp War Pro Res Machines Disabled 9 | . . 1 . . . . . . . 1 2 . 4 . . . . 1 Max in Single Turn 3 | . . 1 . . . . . . . 1 1 . 3 . . . . 1 Garrison Access 2 | . . . . . . 1 . . . . . 1 . . . . . . Machines Repaired . | . . . . . . . . . . . . . . . . . . . Machines Sabotaged . | . . . . . . . . . . . . . . . . . . . Overloaded Fab Kills . | . . . . . . . . . . . . . . . . . . . Hacking | -11 -10 -10 -9 -9 -8 -7 -7 -7 -7 -6 -6 -5 -4 -4 -4 -4 -3 -3 --------- Run | Jun Mat Sub Mat Min Mat Fac Low Low Dat Pro Fac Fac Fac Upp Upp War Pro Res Machines Accessed 55 | . 2 2 1 1 3 10 2 . 4 . 10 8 5 . . . . 7 Terminals 24 | . 1 . 1 . 3 6 . . . . 5 5 . . . . . 3 Fabricators 6 | . . . . . . 1 . . . . 2 2 . . . . . 1 Repair Stations 1 | . . . . . . 1 . . . . . . . . . . . . Recycling Units 9 | . 1 . . . . . . . . . 2 . 4 . . . . 2 Scanalyzers 1 | . . . . . . 1 . . . . . . . . . . . . Garrison Access 5 | . . . . . . 1 . . . . 1 1 1 . . . . 1 Total Hacks 131 | . 7 10 1 1 5 18 7 . 28 . 17 17 8 . . . . 12 Successful 71 | . 3 10 1 1 4 6 7 . 28 . 5 3 1 . . . . 2 Failed 60 | . 4 . . . 1 12 . . . . 12 14 7 . . . . 10 Catastrophic 21 | . . . . . 1 6 . . . . 4 4 2 . . . . 4 Database Lockouts . | . . . . . . . . . . . . . . . . . . . Manual 43 | . 5 2 . . 3 7 . . . . 8 14 . . . 1 . 3 Terminals 47 | . 5 . 1 . 5 10 . . . . 9 13 . . . . . 4 Fabricators 9 | . . . . . . 2 . . . . 3 3 . . . . . 1 Repair Stations 1 | . . . . . . 1 . . . . . . . . . . . . Recycling Units 16 | . 2 . . . . . . . . . 3 . 6 . . . . 5 Scanalyzers 4 | . . . . . . 4 . . . . . . . . . . . . Garrison Access 8 | . . . . . . 1 . . . . 2 1 2 . . . . 2 Terminal Hacks 51 | . . 10 1 1 3 . 7 . 28 . 1 . . . . . . . Record 26 | . . 9 . . . . 6 . 11 . . . . . . . . . Part Schematic 9 | . . . . . . . . . 9 . . . . . . . . . Robot Schematic 5 | . . . . . . . . . 5 . . . . . . . . . Prototype ID Bank 3 | . . . . . . . . . 3 . . . . . . . . . Open Door 2 | . . . . 1 . . 1 . . . . . . . . . . . Branch Access Points 1 | . . . . . 1 . . . . . . . . . . . . . Recycling Unit Index 1 | . . . . . . . . . . . 1 . . . . . . . Alert Level 1 | . . . . . 1 . . . . . . . . . . . . . Locate Traps 1 | . . . . . 1 . . . . . . . . . . . . . Zone Layout 1 | . . . 1 . . . . . . . . . . . . . . . Derelict Proto ID Bank 1 | . . 1 . . . . . . . . . . . . . . . . Fabricator Hacks 1 | . . . . . . 1 . . . . . . . . . . . . Network Status 1 | . . . . . . 1 . . . . . . . . . . . . Repair Station Hacks . | . . . . . . . . . . . . . . . . . . . Recycling Unit Hacks 6 | . 1 . . . . . . . . . 3 . 1 . . . . 1 Report Inventory 2 | . . . . . . . . . . . 1 . . . . . . 1 Retrieve Matter 1 | . 1 . . . . . . . . . . . . . . . . . Retrieve Components 3 | . . . . . . . . . . . 2 . 1 . . . . . Scanalyzer 3 | . . . . . . 3 . . . . . . . . . . . . Insert Component 1 | . . . . . . 1 . . . . . . . . . . . . Analyze 2 | . . . . . . 2 . . . . . . . . . . . . Garrison Access Hacks 2 | . . . . . . 1 . . . . . 1 . . . . . . Seal Access 2 | . . . . . . 1 . . . . . 1 . . . . . . Unauthorized Hacks 8 | . 2 . . . 1 1 . . . . 1 2 . . . . . 1 Terminals 8 | . 2 . . . 1 1 . . . . 1 2 . . . . . 1 Track 1 | . 1 . . . . . . . . . . . . . . . . . Botnet 6 | . . . . . 1 1 . . . . 1 2 . . . . . 1 Disrupt 1 | . 1 . . . . . . . . . . . . . . . . . Fabricators . | . . . . . . . . . . . . . . . . . . . Repair Stations . | . . . . . . . . . . . . . . . . . . . Recycling Units . | . . . . . . . . . . . . . . . . . . . Scanalyzers . | . . . . . . . . . . . . . . . . . . . Garrison Access . | . . . . . . . . . . . . . . . . . . . Data Cores Recovered . | . . . . . . . . . . . . . . . . . . . Used . | . . . . . . . . . . . . . . . . . . . Hacking Detections 38 | . 2 . . . 2 8 . . . . 8 7 4 . . . . 7 Full Trace Events 2 | . . . . . . . . . . . 1 1 . . . . . . Feedback Events . | . . . . . . . . . . . . . . . . . . . Feedback Blocked . | . . . . . . . . . . . . . . . . . . . Robot Schematics Acquired 5 | . . . . . . . . . 5 . . . . . . . . . Robots Built . | . . . . . . . . . . . . . . . . . . . Authchips . | . . . . . . . . . . . . . . . . . . . Time . | . . . . . . . . . . . . . . . . . . . Total Robot Build Rating . | . . . . . . . . . . . . . . . . . . . Part Schematics Acquired 10 | . . . . . . 1 . . 9 . . . . . . . . . Parts Built . | . . . . . . . . . . . . . . . . . . . Authchips . | . . . . . . . . . . . . . . . . . . . Time . | . . . . . . . . . . . . . . . . . . . Total Part Build Rating . | . . . . . . . . . . . . . . . . . . . Parts Repaired . | . . . . . . . . . . . . . . . . . . . Time . | . . . . . . . . . . . . . . . . . . . Parts Recycled . | . . . . . . . . . . . . . . . . . . . Recycled Matter . | . . . . . . . . . . . . . . . . . . . Retrieved Matter 57 | . 57 . . . . . . . . . . . . . . . . . Retrieved Components 7 | . . . . . . . . . . . 4 . 3 . . . . . Parts Scanalyzed 1 | . . . . . . 1 . . . . . . . . . . . . Part Schematics Acquired 1 | . . . . . . 1 . . . . . . . . . . . . Parts Damaged 1 | . . . . . . 1 . . . . . . . . . . . . Bothacking | -11 -10 -10 -9 -9 -8 -7 -7 -7 -7 -6 -6 -5 -4 -4 -4 -4 -3 -3 ------------ Run | Jun Mat Sub Mat Min Mat Fac Low Low Dat Pro Fac Fac Fac Upp Upp War Pro Res Used RIF Installer . | . . . . . . . . . . . . . . . . . . . Robots Hacked . | . . . . . . . . . . . . . . . . . . . Non-combat . | . . . . . . . . . . . . . . . . . . . Combat . | . . . . . . . . . . . . . . . . . . . Robot Hacks Applied . | . . . . . . . . . . . . . . . . . . . Relay Couplers Released 2 | . . . . . . . . . . . . 2 . . . . . . Machine Destruction 2 | . . . . . . . . . . . . 2 . . . . . . Fabnet Peak Effective % . | . . . . . . . . . . . . . . . . . . . Robots Rewired 4 | . . . . . . . 2 2 . . . . . . . . . . Allies Hacked . | . . . . . . . . . . . . . . . . . . . Hacks Repelled . | . . . . . . . . . . . . . . . . . . . Allies | -11 -10 -10 -9 -9 -8 -7 -7 -7 -7 -6 -6 -5 -4 -4 -4 -4 -3 -3 -------- Run | Jun Mat Sub Mat Min Mat Fac Low Low Dat Pro Fac Fac Fac Upp Upp War Pro Res Total Allies 5 | . . . . . . . 2 2 . 1 . . . . . . . . Largest Group 2 | . . . . . . . 2 2 1 2 . . . . . . . . Highest-Rated Group 112 | . . . . . . . 62 32 16 112 . . . . . . . . Highest-Rated Ally 96 | . . . . . . . 31 16 16 96 . . . . . . . . Total Orders . | . . . . . . . . . . . . . . . . . . . Ally Attacks 47 | . . . . . . . 22 7 . 18 . . . . . . . . Total Damage 884 | . . . . . . . 382 70 . 432 . . . . . . . . Kills 9 | . . . . . . . 2 3 . 4 . . . . . . . . Allies Corrupted 1 | . . . . . . . . 1 . . . . . . . . . . Allies Melted 1 | . . . . . . . . . . . . . . . . 1 . . Intel | -11 -10 -10 -9 -9 -8 -7 -7 -7 -7 -6 -6 -5 -4 -4 -4 -4 -3 -3 ------- Run | Jun Mat Sub Mat Min Mat Fac Low Low Dat Pro Fac Fac Fac Upp Upp War Pro Res Robot Analysis Total . | . . . . . . . . . . . . . . . . . . . Derelict Logs Recovered 6 | . . 3 . . . . 1 . . . . . . 2 . . . . Drone Launches . | . . . . . . . . . . . . . . . . . . . Drone Recoveries . | . . . . . . . . . . . . . . . . . . . Exploration | -11 -10 -10 -9 -9 -8 -7 -7 -7 -7 -6 -6 -5 -4 -4 -4 -4 -3 -3 ------------- Run | Jun Mat Sub Mat Min Mat Fac Low Low Dat Pro Fac Fac Fac Upp Upp War Pro Res Turns Passed 16244 | 72 1231 3525 457 297 485 1310 861 586 87 452 1059 1177 1289 642 804 791 326 793 Spaces Moved 9842 | 45 722 2276 228 76 257 994 572 356 75 345 785 726 610 347 455 371 191 411 Core 264 | 1 . 2 . . . . . . . 32 160 . . . . . . 69 Treads 2218 | . 411 69 . . . . . . . . . . 32 347 455 371 191 342 Legs 3875 | . . 2205 158 24 . . . . . . 184 726 578 . . . . . Wheels 3485 | 44 311 . 70 52 257 994 572 356 75 313 441 . . . . . . . Hover . | . . . . . . . . . . . . . . . . . . . Flight . | . . . . . . . . . . . . . . . . . . . Fastest Speed 50 | 50 95 120 110 115 130 100 115 115 115 50 50 115 120 160 160 160 160 50 Average Speed 130 | 88 132 130 145 126 130 112 120 118 115 109 104 118 154 160 160 160 160 141 Slowest Speed 260 | 95 160 160 200 200 130 115 130 130 115 130 185 190 260 160 160 160 160 160 Overloaded Moves . | . . . . . . . . . . . . . . . . . . . Propulsion Burnouts . | . . . . . . . . . . . . . . . . . . . Robots Hopped . | . . . . . . . . . . . . . . . . . . . Cave-ins Triggered . | . . . . . . . . . . . . . . . . . . . Exploration Rate (%) 42 | 3 96 86 25 17 25 30 67 50 68 56 20 22 17 54 68 46 46 20 Regions Visited 18 Branch Regions 10 Pre-discovered Areas 6 | . . 3 . . . . 2 . 1 . . . . . . . . . Known Exits Taken 1 | . . . 1 . . . . . . . . . . . . . . . Unknown Exits Taken 17 | 1 1 1 . 1 1 1 1 1 1 1 1 1 1 1 1 1 1 . Scrap Searched 30 | . . 10 . 1 . . 1 9 . 1 . . . 3 4 . 1 . Spaces Dug 51 | . 22 3 . . . . . . . 14 . 1 3 . . . . 8 Terrain Destroyed 344 | . 47 3 1 . 1 6 3 4 . 85 21 10 50 23 11 1 4 74 Melee . | . . . . . . . . . . . . . . . . . . . Projectile 142 | . . 3 1 . 1 1 3 4 . 1 21 10 31 23 11 1 1 30 AOE 202 | . 47 . . . . 5 . . . 84 . . 19 . . . 3 44 Terrain Rammed . | . . . . . . . . . . . . . . . . . . . Walls Destroyed . | . . . . . . . . . . . . . . . . . . . Machines Disabled . | . . . . . . . . . . . . . . . . . . . Actions | -11 -10 -10 -9 -9 -8 -7 -7 -7 -7 -6 -6 -5 -4 -4 -4 -4 -3 -3 --------- Run | Jun Mat Sub Mat Min Mat Fac Low Low Dat Pro Fac Fac Fac Upp Upp War Pro Res Total 12169 | 64 902 2671 313 273 348 1133 690 453 75 387 959 885 857 389 493 557 200 520 Wait 1073 | 1 87 173 31 185 27 53 71 35 1 16 54 28 114 13 7 151 . 26 Move 9825 | 44 721 2275 227 75 256 993 571 355 74 344 784 725 609 346 454 371 190 411 Hop . | . . . . . . . . . . . . . . . . . . . Pick Up 151 | 7 6 21 13 5 13 17 2 4 . . 24 13 17 1 2 2 . 4 Fast Attach 94 | 6 4 16 3 1 1 3 1 . . . 16 12 21 . 3 5 . 2 Attach 58 | . 1 6 2 1 3 5 . 3 . 5 8 4 10 1 1 . . 8 Detach 22 | . . 3 2 2 . 2 . . . 1 3 4 2 . 1 . . 2 Swap 73 | . 5 16 4 1 2 8 2 . . 6 8 5 6 3 3 . 2 2 Drop 172 | . 10 45 7 1 12 20 5 . . . 8 17 27 3 3 12 . 2 Fire 633 | 6 68 112 14 2 34 32 28 33 . 15 46 76 49 22 19 15 6 56 Melee 10 | . . . 10 . . . . . . . . . . . . . . . Ram 1 | . . . . . . . . . . . . . . . . . . 1 Kick 3 | . . . . . . . . . . . . 1 2 . . . . . Crush 9 | . . . . . . . . . . . . . . . . 1 2 6 Escape Stasis 8 | . . . . . . . . . . . 8 . . . . . . . Rewire 33 | . . . . . . . 10 23 . . . . . . . . . . Trap 4 | . . 4 . . . . . . . . . . . . . . . . Miscellaneous . | . . . . . . . . . . . . . . . . . . . Route ------- -11/Junkyard -10/Materials (discovered 6 exits: *Mat x3 / [*Min x2] / *Sub) -10/Subcaves (discovered 2 exits: *Mat / *Mat) -9/Materials -9/Mines -8/Materials -7/Factory -7/Lower Caves -7/Lower Caves -7/Data Miner -6/Proximity Caves -6/Factory -5/Factory -4/Factory -4/Upper Caves -4/Upper Caves (discovered 2 exits: *Res / *War) -4/Warlord -3/Proximity Caves -3/Research History --------- Turn | Location | Event 8 | -11/Junkyard | Discovered new exit (range 16) 73 | -11/Junkyard | Entered Materials 206 | -10/Materials | Discovered new exit (range 9) 304 | -10/Materials | Build established: Mutant 347 | -10/Materials | Discovered new exit (range 4) 568 | -10/Materials | Discovered new exit (range 15) 780 | -10/Materials | Discovered new exit (range 8) 918 | -10/Materials | Discovered new exit (range 16) 1294 | -10/Materials | Discovered new exit (range 7) 1304 | -10/Materials | Entered Subcaves 1338 | -10/Subcaves | Discovered new exit (range 16) 1341 | -10/Subcaves | Learned location of Zion (-6) 1341 | -10/Subcaves | Met a Zionite searching for "candidates" 1496 | -10/Subcaves | Lost 3 parts (2p1w) 1524 | -10/Subcaves | Core integrity fell below 50% 1548 | -10/Subcaves | Lost 4 parts (2n2w) 1788 | -10/Subcaves | Discovered new exit (range 15) 1837 | -10/Subcaves | Build established: Derelict-Mutant 1842 | -10/Subcaves | Learned location of 1 exit from Materials 1982 | -10/Subcaves | Disturbed a concealed Subdweller 2296 | -10/Subcaves | A swath of the cavern ceiling suddenly collapsed 2393 | -10/Subcaves | Shifting Twisted Machinery released Sub. Power Source 2642 | -10/Subcaves | Shifting Twisted Machinery released Riot Gun 3124 | -10/Subcaves | Visited 4L-MR0's lab 3140 | -10/Subcaves | Found Cargo Legs 3141 | -10/Subcaves | Attached Cargo Legs, gained temporary slots: Utility x2 3475 | -10/Subcaves | Visited Clippyterm 3566 | -10/Subcaves | Shifting Twisted Machinery released Battle Rifle 3586 | -10/Subcaves | Shifting Twisted Machinery released Mak. Kinetic Plating 3617 | -10/Subcaves | A swath of the cavern ceiling suddenly collapsed 4121 | -10/Subcaves | Core integrity fell below 20% 4165 | -10/Subcaves | Shifting Twisted Machinery released Shrapnel Trap 4173 | -10/Subcaves | Shifting Twisted Machinery released Humpback 4368 | -10/Subcaves | Ambushed by Subdweller buried in earth 4829 | -10/Subcaves | Entered Materials 4829 | -9/Materials | Evolved 2 slots: Propulsion x2 4830 | -9/Materials | Identified exit to Mines 5286 | -9/Materials | Entered Mines 5294 | -9/Mines | Met a Derelict who couldn't figure out how to use a Trap Extractor 5321 | -9/Mines | Met a Derelict bent on vengeance 5477 | -9/Mines | Build established: Mutant 5565 | -9/Mines | Discovered new exit (range 12) 5583 | -9/Mines | Entered Materials 5583 | -8/Materials | Evolved 2 slots: Utility x2 6039 | -8/Materials | Discovered new exit (range 10) 6068 | -8/Materials | Entered Factory 6068 | -7/Factory | Evolved 2 slots: Propulsion x2 7360 | -7/Factory | Discovered new exit (range 16) 7378 | -7/Factory | Entered Lower Caves 7387 | -7/Lower Caves | Encountered a Warlord checkpoint 7609 | -7/Lower Caves | Learned location of Extension (-6) 7609 | -7/Lower Caves | Learned location of Armory (-3) 7639 | -7/Lower Caves | Learned 4 Factory zone layouts 7711 | -7/Lower Caves | Attacked by a faux Warlord 8232 | -7/Lower Caves | Discovered new exit (range 5) 8239 | -7/Lower Caves | Entered another Lower Caves area 8336 | -7/Lower Caves | Attracted the attention of an 0b10 outpost 8418 | -7/Lower Caves | Lost 4 parts (2n2u) 8445 | -7/Lower Caves | Destroyed 9 combat bots 8819 | -7/Lower Caves | Discovered new exit (range 6) 8825 | -7/Lower Caves | Entered Data Miner 8825 | -7/Data Miner | Accompanied by 1 ally 8825 | -7/Data Miner | Discovered new exit (range 6) 8847 | -7/Data Miner | Met Data Miner 8869 | -7/Data Miner | Learned location of Section 7 (-2) 8869 | -7/Data Miner | Acquired the access code to Warlord's prototype stash 8885 | -7/Data Miner | Received God Mode back door access code from Data Miner 8912 | -7/Data Miner | Entered Proximity Caves 8912 | -6/Proximity Caves | Accompanied by 1 ally 8914 | -6/Proximity Caves | Spotter reported a threat 8915 | -6/Proximity Caves | Spotter reported a threat 9054 | -6/Proximity Caves | Spotter reported a threat 9087 | -6/Proximity Caves | Escorted by Enhanced Grunt 9117 | -6/Proximity Caves | Received a Behemoth hack from an annoying Tinkerer 9302 | -6/Proximity Caves | Attracted the attention of an 0b10 outpost 9331 | -6/Proximity Caves | Destroyed 8 combat bots 9343 | -6/Proximity Caves | Lost 4 parts (1p3n) 9348 | -6/Proximity Caves | Attracted the attention of an 0b10 checkpoint 9349 | -6/Proximity Caves | Released all parts (6) 9351 | -6/Proximity Caves | Core integrity fell below 50% 9360 | -6/Proximity Caves | Discovered new exit (range 8) 9364 | -6/Proximity Caves | Entered Factory 9364 | -6/Factory | Evolved 2 slots: Utility x2 9378 | -6/Factory | Lost 4 parts (1u3w) 9714 | -6/Factory | Search patrols dispatched 9933 | -6/Factory | System corruption reached 10% 10346 | -6/Factory | Discovered new exit (range 11) 10423 | -6/Factory | Entered another Factory area 10423 | -5/Factory | Evolved 2 slots: Power x1, Weapon x1 11156 | -5/Factory | Garrison activated, responded to threat 11167 | -5/Factory | Incoming investigation squad redirected 11183 | -5/Factory | Build established: Tank 11243 | -5/Factory | System corruption reached 10% 11436 | -5/Factory | Discovered new exit (range 17) 11461 | -5/Factory | Garrison activated, responded to threat 11600 | -5/Factory | Entered another Factory area 11600 | -4/Factory | Evolved 2 slots: Utility x2 11607 | -4/Factory | Lost 11 parts (3p2n4u2w) 11896 | -4/Factory | Found Prototype Launcher 11896 | -4/Factory | Identified Tesla Bomb Launcher 12094 | -4/Factory | Lost 3 parts (2n1w) 12269 | -4/Factory | System corruption reached 10% 12878 | -4/Factory | Discovered new exit (range 8) 12889 | -4/Factory | Entered Upper Caves 13082 | -4/Upper Caves | Attracted the attention of an 0b10 checkpoint 13404 | -4/Upper Caves | Build established: Gunner 13421 | -4/Upper Caves | Learned Research emergency access door positions 13438 | -4/Upper Caves | Learned Research machine intel 13525 | -4/Upper Caves | Discovered new exit (range 5) 13531 | -4/Upper Caves | Entered another Upper Caves area 13603 | -4/Upper Caves | Discovered new exit (range 21) 13817 | -4/Upper Caves | Spotted B-86 Titan 13850 | -4/Upper Caves | Destroyed B-86 Titan 14010 | -4/Upper Caves | Build established: Derelict-Tank 14055 | -4/Upper Caves | Attracted the attention of an 0b10 outpost 14311 | -4/Upper Caves | Discovered new exit (range 13) 14335 | -4/Upper Caves | Entered Warlord 14390 | -4/Warlord | System corruption cleaned by Quarantine Array 14557 | -4/Warlord | Found Prototype Energy Gun 14709 | -4/Warlord | Met Warlord 14721 | -4/Warlord | Warlord's base attacked by MAIN.C 14723 | -4/Warlord | Opened Warlord's prototype stash 14731 | -4/Warlord | Found Prototype Reactor 14731 | -4/Warlord | Identified Vortex Chain Reactor 14740 | -4/Warlord | Found Prototype Device 14740 | -4/Warlord | Identified Exp. Cloaking Device 14748 | -4/Warlord | Found Prototype Device 14748 | -4/Warlord | Identified Thermal Barrier 14988 | -4/Warlord | Warlord forces counterattacked 15039 | -4/Warlord | Spotted Striker 15043 | -4/Warlord | Spotted Striker 15107 | -4/Warlord | Discovered new exit (range 14) 15121 | -4/Warlord | Spotted Executioner 15121 | -4/Warlord | Spotted Striker 15126 | -4/Warlord | Entered Proximity Caves 15366 | -3/Proximity Caves | Build established: Derelict-Mutant 15429 | -3/Proximity Caves | Discovered new exit (range 5) 15452 | -3/Proximity Caves | Entered Research 15452 | -3/Research | Evolved 2 slots: Propulsion x2 15454 | -3/Research | Loaded intel: 88 machine locations 15457 | -3/Research | Spotted B-86 Titan 15731 | -3/Research | Found Prototype Processor 15731 | -3/Research | Identified Exp. Signal Interpreter 16152 | -3/Research | System corruption reached 10% 16186 | -3/Research | Destroyed 10 combat bots 16197 | -3/Research | Spotted Executioner 16197 | -3/Research | Spotted Executioner 16198 | -3/Research | Cargo convoy interrupted 16200 | -3/Research | Spotted Executioner 16200 | -3/Research | Spotted Executioner 16203 | -3/Research | Destroyed Executioner 16207 | -3/Research | Released all parts (4) 16210 | -3/Research | Core integrity fell below 50% 16222 | -3/Research | Incoming assault squad redirected 16231 | -3/Research | Core integrity fell below 20% 16236 | -3/Research | Spotted B-86 Titan 16245 | -3/Research | Lost 18 parts (1p6n6u5w) 16245 | -3/Research | Destroyed by S-43 Plague with Heavy Machine Gun Last Messages --------------- 16207_ Released Rnf. Fission Core. 16207_ H-77 Assassin destroyed. 16208_ System corrupted: Component data lost. 16208_ The unstable cave ceiling collapses. 16208_ W-44 Eye destroyed. 16208_ Acquired Biometal Medium Treads. 16208_ A-27 Freighter shuts down. 16209_ The unstable cave ceiling collapses. 16209_ Executioner knocked back. 16210_ K-01 Serf collects debris. 16210_ Penetrated by Slug. 16210_ Slug penetrates Wall. 16210_ Acquired 29 matter. 16210_ Penetrated by Slug. 16211_ G-67 Veteran destroyed. 16212_ R-10 Processor collects Adv. Heat Sink. 16214_ Biometal Medium Treads destroyed. 16222_ ALERT: Higher priority target reported, redirecting assault. 16231_ Slammed into K-01 Serf. 16231_ K-01 Serf sends out distress signal. Map ----- +----------------------------------------------------+ | ?????????????????????# ???? #???????" | | ???????????????# ????# ???? #???????G | | ??????????????? ????# #??? #???????" | | ???????????????# ????# #??? ????????" | | ???????????????# ????# #??? ?????????? | | ???????????????# ????# #??? ??????????? | | ??????????##???# ????# #####+#??????????? | | ????????###"#### ##### #??????????? | | ????????+ #???######## | | ????????# ##### | | ????????# + | | ????????# !! ###+##### | | ????????# !! # ??# | | ????????+ ! # # | | ????????# # ##] !! | | ????????### ss # !## ! | | ????????###+### #% ## | | ????????# ???# # ## | | ????????# ??+ """ ######### | | ?????+??# ! ?# """ ##??????# | | ????????# =# """ "##?????# | | ????????+ # #?????######## | | ????????# ] " #????????????? | | ????????# # ###????????????? | | ????????#####?## ### #??????????????? | | ???????????????#@#??# ##??????????????? | | ?????????????? ?? #???????????????? | | ????????????# ! # +???????????????? | | ????????????# []] # #???????????????? | | ????????????# []] #? #???????????????? | | ????????????Y []] #?? #???????????????? | | ???????????########+#???#???????????????? | | ????????????????????????????????????????? | | ????????????????????????????????????????? | | ????????????????????????????????????????? | | ????????????????????????????????????????? | | ????????????????????????????????????????? | | ????????????????????????????????????????? | | ????????????????????????????????????????? | | ???????????+????????????????????????????? | | ????????????????????????????????????????? | | ????????+???????????????????????????????? | | ????????????????????????????????????????? | | ????????????????????????????????????????? | | ????????????????????????????????????????? | | ????????????????????????????????????????? | | ????????????????????????????????????????? | | ????????????????????????????????????????? | | ????????????????????????????????????????? | | ?????????????????????????????""?""??????? | +----------------------------------------------------+ Best States ------------- Heat Dissipation 108 Energy Generation 55 Energy Capacity 700 Matter Stores 300 Matter Capacity 300 Sight Range 22 Terrain Scan Density 10 Armor Coverage 1200 Resistance: KI 20 Resistance: TH 50 Resistance: EM 25 Core Shielding 20 Propulsion Shielding 90 Weapon Shielding 66 Evasion (%) 55 Targeting Accuracy 16 Target Analysis 5 Recoil Reduction 8 Matter Filtering 30 Energy Filtering 30 Item Schematics ----------------- Mni. Assault Cannon | -7/Factory | Scanalyzed Combat Drone Bay | -7/Data Miner | Free Lgt. Regenerative Plating | -7/Data Miner | Free Cld. Cesium-ion Thruster | -7/Data Miner | Free Exp. Propulsion Shielding | -7/Data Miner | Free Imp. Heavy Machine Gun | -7/Data Miner | Free Arm. Medium Treads | -7/Data Miner | Free Imp. Focal Shield | -7/Data Miner | Free Hyp. Gauss Cannon | -7/Data Miner | Free Antimatter Reactor | -7/Data Miner | Free Robot Schematics ------------------ O-24 Administrator | -7/Data Miner | Free S-27 Virus | -7/Data Miner | Free B-48 Gladiator | -7/Data Miner | Free L-41 Fighter | -7/Data Miner | Free A-15 Conveyor | -7/Data Miner | Free Fabricated ------------ Nothing Alien Tech Used ----------------- None Achievements -------------- None Challenges ------------ None Game ------ Seed MinesnifferChainBuckler Manual? 0 Play Time 02:09:06 Cumulative 380.4 hours Start 2023.07.13 @ 17:41:31 End 2023.07.14 @ 21:49:05 Sessions 3 Manual Loads 0 Difficulty Rogue Special Mode None Game No. 261 Rogue 261 Adventurer 0 Explorer 0 Win Type - Total 29 Types 25/0/3/1/0/0/0/0/0 Lore% 71 Gallery% 86 Achievement% 69 Wizard Run 0 Options --------- ASCII 0 Keyboard 1 Movement Numpad Keybinds 0 Fullscreen 2 Font 18/SmallcapsGlow Map View 76x50 Tactical HUD 1 Map Filters NONE Filters NONE Steam 1 RUN: 9ccb69e5-1b6b-4dc6-81ea-b497276bb085